bitfinex-derivatives/quotes_BTCF0:USTF0_20250108
["timestamp","ask_amount","ask_price","bid_price","bid_amount"]
[1736302096097,0.001,97174.0,97167.0,0.05147]
[1736302096700,0.051466,97176.0,97167.0,0.05147]
[1736302096902,0.001,97173.0,97167.0,0.05147]
[1736302097308,0.051466,97176.0,97168.0,0.051469]
[1736302097507,0.001,97174.0,97168.0,0.051469]
[1736302099002,0.001,97173.0,97168.0,0.051469]
[1736302099512,0.051466,97176.0,97168.0,0.051469]
[1736302099803,0.001,97174.0,97168.0,0.04632211]
[1736302100012,0.051466,97176.0,97168.0,0.04632211]
[1736302100312,0.001,97173.0,97168.0,0.04632211]
[1736302100713,0.052466,97176.0,97168.0,0.04632211]
[1736302101309,0.001,97176.0,97171.0,0.051468]
[1736302103810,0.001,97176.0,97172.0,0.051467]
[1736302104310,0.001,97176.0,97174.0,0.051466]
[1736302104513,0.001,97176.0,97175.0,0.3147]
[1736302105310,0.001,97176.0,97175.0,0.2180386]
[1736302105614,0.001,97176.0,97175.0,0.5457386]
[1736302106108,0.3608,97186.0,97175.0,0.5457386]
[1736302106308,0.6468,97199.0,97181.0,0.051463]
[1736302106309,0.051457,97192.0,97181.0,0.051463]
[1736302106513,0.051457,97192.0,97183.0,0.06685453]
[1736302106906,0.051458,97191.0,97183.0,0.06685453]
[1736302107105,0.001,97186.0,97183.0,0.06685453]
[1736302107309,0.001,97186.0,97182.0,0.316]
[1736302107713,0.001,97186.0,97182.0,0.30677377]
[1736302108107,0.001,97186.0,97181.0,0.051463]
[1736302108108,0.3608,97183.0,97181.0,0.051463]
[1736302109511,0.3608,97183.0,97181.0,0.09656228]
[1736302109916,0.412255,97197.0,97186.0,0.05146]
[1736302110213,0.31984382,97196.0,97186.0,0.05146]
[1736302110410,0.07410993,97193.0,97186.0,0.05146]
[1736302110605,0.051457,97192.0,97186.0,0.05146]
[1736302111115,0.02265293,97193.0,97191.0,0.051457]
[1736302111318,0.00154382,97196.0,97195.0,0.051455]
[1736302112307,0.001,97193.0,97186.0,0.06685453]
[1736302112519,0.051446,97212.0,97189.0,0.3608]
[1736302112723,0.051446,97212.0,97202.0,0.42765453]
[1736302112922,0.051446,97212.0,97206.0,0.051449]
[1736302113221,0.05144,97224.0,97211.0,0.3608]
[1736302113408,0.051443,97219.0,97214.0,0.06685453]
[1736302113605,0.051443,97219.0,97211.0,0.3608]
[1736302113809,0.06685453,97230.0,97217.0,0.3608]
[1736302114016,0.06685453,97230.0,97229.0,0.3608]
[1736302114017,0.051437,97230.0,97229.0,0.3608]
[1736302114414,0.051437,97230.0,97229.0,0.2641666]
[1736302114614,0.051434,97237.0,97229.0,0.2641666]
[1736302114810,1.11177271,97258.0,97234.0,0.3608]
[1736302115011,0.051434,97236.0,97234.0,0.3608]
[1736302115326,0.051434,97236.0,97234.0,0.3598]
[1736302115517,0.3195,97235.0,97234.0,0.19495991]
[1736302116125,0.44630314,97235.0,97234.0,0.19495991]
[1736302116320,1.07550314,97235.0,97234.0,0.19495991]
[1736302116623,0.9487,97235.0,97234.0,0.19495991]
[1736302117913,0.05145,97214.0,97213.0,0.3608]
[1736302118421,0.35145,97214.0,97213.0,0.3608]
[1736302119421,0.05145,97214.0,97213.0,0.3608]
[1736302120020,0.3608,97221.0,97213.0,0.3608]
[1736302120220,0.051447,97221.0,97213.0,0.3608]
[1736302120421,0.051447,97221.0,97214.0,0.3608]
[1736302123231,0.051441,97232.0,97214.0,0.3608]
[1736302123425,0.051441,97232.0,97230.0,0.3608]
[1736302123625,0.051441,97232.0,97230.0,0.32472001]
[1736302128727,0.051441,97232.0,97222.0,0.10181291]
[1736302128728,0.051444,97226.0,97222.0,0.46261291]
[1736302128929,0.051444,97226.0,97222.0,0.3608]
[1736302130823,0.9487,97235.0,97222.0,0.3608]
[1736302131026,0.051445,97224.0,97222.0,0.32472001]
[1736302135128,0.051445,97224.0,97222.0,0.29224801]
[1736302136536,0.051445,97224.0,97222.0,0.26302321]
[1736302138926,0.051445,97224.0,97223.0,0.3032]
[1736302142031,0.051445,97224.0,97223.0,0.9406]
[1736302142328,0.04392883,97236.0,97223.0,0.9406]
[1736302142530,0.051442,97231.0,97223.0,0.9406]
[1736302143239,0.051443,97229.0,97223.0,0.9406]
[1736302147135,0.051443,97229.0,97223.0,0.98558134]
[1736302148430,0.3608,97250.0,97223.0,0.98558134]
[1736302148635,0.3608,97250.0,97231.0,0.2641803]
[1736302148636,0.051436,97242.0,97231.0,0.2641803]
[1736302148835,0.051436,97242.0,97232.0,0.051441]
[1736302149741,0.14287618,97233.0,97232.0,0.051441]
[1736302149940,0.14287618,97233.0,97223.0,0.91205406]
[1736302150141,0.14287618,97233.0,97230.0,0.051442]
[1736302150443,0.14287618,97233.0,97232.0,0.412241]
[1736302151339,0.051436,97242.0,97232.0,0.37101691]
[1736302152542,0.051433,97248.0,97232.0,0.37101691]
[1736302153636,0.051433,97248.0,97232.0,0.22296575]
[1736302153843,0.051433,97248.0,97238.0,0.10181291]
[1736302154143,0.051433,97248.0,97239.0,0.3309]
[1736302156340,0.3608,97250.0,97239.0,0.3309]
[1736302156546,0.3608,97240.0,97239.0,0.38195975]
[1736302157133,0.3608,97240.0,97239.0,0.3309]
[1736302157439,0.412237,97240.0,97233.0,0.321]
[1736302157639,0.051439,97237.0,97233.0,0.321]
[1736302158044,0.051439,97236.0,97233.0,0.321]
[1736302158244,0.3608,97240.0,97233.0,0.321]
[1736302158442,0.3608,97239.0,97220.0,0.10181291]
[1736302158842,0.3608,97239.0,97229.0,0.10181291]
[1736302159042,0.3608,97239.0,97220.0,0.10181291]
[1736302160146,0.3608,97239.0,97229.0,0.10181291]
[1736302163949,0.3608,97239.0,97223.0,0.3608]
[1736302165352,0.3608,97239.0,97229.0,0.10181291]
[1736302168554,0.3608,97239.0,97223.0,0.3608]
[1736302169144,0.10181291,97233.0,97224.0,0.3608]
[1736302169345,0.10181291,97233.0,97199.0,0.051458]
[1736302169346,0.3608,97225.0,97204.0,0.3608]
[1736302169548,0.2902,97224.0,97207.0,0.05211023]
[1736302170361,0.2902,97224.0,97210.0,0.10181291]
[1736302170873,0.3608,97225.0,97210.0,0.10181291]
[1736302171048,0.60200001,97232.0,97210.0,0.10181291]
[1736302171049,0.60200001,97232.0,97213.0,0.3071]
[1736302171253,0.60200001,97232.0,97220.0,0.10181291]
[1736302171459,0.6014,97232.0,97213.0,0.3071]
[1736302171763,0.10181291,97230.0,97214.0,0.3608]
[1736302172760,0.10181291,97230.0,97204.0,0.3608]
[1736302172761,0.3608,97223.0,97204.0,0.3608]
[1736302172958,0.3608,97223.0,97212.0,0.05260192]
[1736302173158,0.3608,97223.0,97212.0,0.00154297]
[1736302173359,0.3608,97223.0,97212.0,0.3608]
[1736302173751,0.2979,97222.0,97212.0,0.3608]
[1736302174151,0.5979,97222.0,97212.0,0.3608]
[1736302174353,0.2979,97222.0,97212.0,0.3608]
[1736302175053,0.5979,97222.0,97212.0,0.3608]
[1736302175255,0.2979,97222.0,97212.0,0.3608]
[1736302176356,0.34863137,97222.0,97212.0,0.3608]
[1736302176556,0.34863137,97222.0,97212.0,0.34026953]
[1736302177264,0.3608,97213.0,97194.0,0.3608]
[1736302177460,0.10181291,97210.0,97196.0,0.2879]
[1736302179455,0.3608,97213.0,97200.0,0.10181291]
[1736302179858,0.3608,97213.0,97198.0,0.051458]
[1736302185377,0.3608,97213.0,97200.0,0.10181291]
[1736302185668,0.3608,97221.0,97212.0,0.3608]
[1736302185871,0.10181291,97230.0,97213.0,0.8828]
[1736302187073,0.10181291,97230.0,97213.0,0.70703331]
[1736302188775,0.10181291,97230.0,97213.0,0.61039626]
[1736302190070,0.41118822,97232.0,97213.0,0.61039626]
[1736302190575,0.10181291,97230.0,97213.0,0.61039626]
[1736302190778,0.46261291,97223.0,97213.0,0.61039626]
[1736302191168,0.3608,97223.0,97213.0,0.61039626]
[1736302191977,0.41118822,97232.0,97213.0,0.61039626]
[1736302193083,0.41118822,97232.0,97220.0,0.10181291]
[1736302193475,0.41118822,97232.0,97221.0,0.3608]
[1736302193672,0.41118822,97232.0,97221.0,0.25398679]
[1736302196876,0.05038822,97232.0,97221.0,0.25398679]
[1736302197182,0.3608,97243.0,97221.0,0.25398679]
[1736302198580,0.05386188,97233.0,97221.0,0.25398679]
[1736302198786,0.05386188,97233.0,97221.0,0.21326213]
[1736302199288,0.3608,97231.0,97221.0,0.05493619]
[1736302200691,0.00154336,97233.0,97232.0,0.051441]
[1736302201083,0.3608,97252.0,97230.0,0.86772]
[1736302201288,0.3608,97252.0,97242.0,0.10181291]
[1736302203792,0.3608,97252.0,97240.0,0.14313325]
[1736302204300,0.3608,97252.0,97240.0,0.19508294]
[1736302205699,0.3608,97252.0,97240.0,0.11846356]
[1736302205890,0.051431,97251.0,97240.0,0.16990056]
[1736302207505,0.3608,97252.0,97243.0,0.051435]
[1736302207890,0.3608,97252.0,97243.0,0.03444515]
[1736302208693,0.3608,97252.0,97243.0,0.03100064]
[1736302209689,0.3608,97252.0,97242.0,0.10181291]
[1736302209892,0.3608,97252.0,97243.0,0.051435]
[1736302211196,0.3608,97252.0,97242.0,0.10181291]
[1736302211397,0.14274388,97251.0,97242.0,0.10181291]
[1736302211799,0.14274388,97251.0,97242.0,0.04688029]
[1736302212003,0.14274388,97251.0,97243.0,0.051435]
[1736302213185,0.051431,97250.0,97242.0,0.04688029]
[1736302214897,0.3608,97252.0,97243.0,0.051435]
[1736302215199,0.3608,97252.0,97242.0,0.04688029]
[1736302215200,0.3608,97252.0,97248.0,0.051432]
[1736302215494,0.3608,97252.0,97249.0,0.2911]
[1736302215694,0.3608,97252.0,97249.0,0.5825]
[1736302216188,0.051425,97262.0,97250.0,0.051431]
[1736302216396,0.051425,97262.0,97256.0,0.051428]
[1736302216595,0.051425,97262.0,97257.0,0.2813]
[1736302217296,0.3608,97264.0,97257.0,0.2813]
[1736302217498,0.3608,97264.0,97257.0,0.332727]
[1736302217898,1.00771283,97269.0,97257.0,0.332727]
[1736302218098,1.00719282,97269.0,97257.0,0.332727]
[1736302218398,0.95577082,97269.0,97260.0,0.3608]
[1736302218599,0.95577082,97269.0,97266.0,0.051422]
[1736302218800,0.3608,97272.0,97266.0,0.051422]
[1736302218998,0.333316,97279.0,97267.0,0.3008]
[1736302221011,0.2819,97279.0,97267.0,0.26557781]
[1736302221302,0.15453789,97283.0,97269.0,0.46261291]
[1736302222207,0.15453789,97283.0,97269.0,0.35140523]
[1736302222902,0.10181291,97280.0,97269.0,0.24959232]
[1736302223098,0.15453789,97283.0,97269.0,0.24959232]
[1736302223299,0.14274388,97279.0,97269.0,0.24959232]
[1736302224602,0.14274388,97279.0,97216.0,0.31370147]
[1736302224603,0.3608,97270.0,97247.0,0.5787]
[1736302224799,0.3608,97254.0,97247.0,0.5787]
[1736302225395,0.051425,97263.0,97247.0,0.5787]
[1736302225396,0.3608,97259.0,97247.0,0.5787]
[1736302226209,0.3608,97259.0,97247.0,0.630133]
[1736302226404,0.3608,97259.0,97249.0,0.10181291]
[1736302226706,0.051425,97263.0,97249.0,0.10181291]
[1736302226707,0.051425,97263.0,97249.0,0.15324391]
[1736302227105,0.3608,97270.0,97249.0,0.10181291]
[1736302227306,0.3608,97270.0,97259.0,0.0052225]
[1736302227506,0.3608,97270.0,97260.0,0.6452]
[1736302228315,0.3608,97270.0,97260.0,0.57501506]
[1736302230699,0.3608,97270.0,97260.0,0.62690532]
[1736302232312,0.3608,97270.0,97260.0,0.53032193]
[1736302234113,0.3608,97270.0,97261.0,0.051425]
[1736302234910,0.3608,97262.0,97261.0,0.051425]
[1736302235801,0.3608,97262.0,97260.0,0.33047657]
[1736302236002,0.3608,97262.0,97261.0,0.051425]
[1736302237302,0.3608,97262.0,97260.0,0.33047657]
[1736302237303,0.3608,97262.0,97260.0,0.28531289]
[1736302237502,0.14274388,97269.0,97261.0,0.051425]
[1736302237912,0.14274388,97269.0,97260.0,0.28427289]
[1736302237913,0.051425,97263.0,97260.0,0.28427289]
[1736302238103,0.051427,97258.0,97247.0,0.5787]
[1736302238415,0.3608,97251.0,97247.0,0.5787]
[1736302239018,0.3608,97251.0,97247.0,0.63035529]
[1736302240012,0.3608,97251.0,97247.0,0.63235529]
[1736302240212,0.3608,97251.0,97247.0,0.63335529]
[1736302241420,0.412231,97251.0,97247.0,0.63335529]
[1736302242011,0.051432,97249.0,97247.0,0.63335529]
[1736302242207,0.051432,97249.0,97247.0,0.003]
[1736302242408,0.051436,97241.0,97240.0,0.00154253]
[1736302242812,0.412236,97241.0,97240.0,0.00154253]
[1736302243315,0.051443,97228.0,97225.0,0.872]
[1736302243522,0.412244,97227.0,97225.0,0.872]
[1736302244017,0.05144,97234.0,97225.0,0.872]
[1736302244316,0.05144,97234.0,97228.0,0.051443]
[1736302245323,0.412236,97241.0,97225.0,0.92272354]
[1736302245514,0.412236,97241.0,97234.0,0.05144]
[1736302245822,0.412236,97241.0,97235.0,0.051439]
[1736302246317,0.3608,97241.0,97235.0,0.051439]
[1736302246616,0.3618,97241.0,97239.0,0.051437]
[1736302246825,0.001,97241.0,97233.0,0.7216]
[1736302247009,0.001,97241.0,97240.0,0.051437]
[1736302247423,0.002,97241.0,97233.0,0.67643753]
[1736302247720,0.051425,97262.0,97233.0,0.67643753]
[1736302247920,0.051425,97262.0,97261.0,0.3608]
[1736302248118,0.051425,97262.0,97261.0,0.32472001]
[1736302249313,0.052425,97262.0,97261.0,0.32472001]
[1736302249621,0.052425,97262.0,97261.0,0.21098372]
[1736302250425,0.001,97262.0,97261.0,0.21098372]
[1736302251523,0.001,97262.0,97256.0,0.3165]
[1736302251725,0.051422,97268.0,97256.0,0.3165]
[1736302251913,0.001,97262.0,97256.0,0.3165]
[1736302252319,0.051422,97268.0,97256.0,0.36759398]
[1736302255320,0.052422,97268.0,97256.0,0.36759398]
[1736302256127,0.052422,97268.0,97257.0,0.051427]
[1736302257126,0.001,97268.0,97258.0,0.10181291]
[1736302257326,0.001,97268.0,97263.0,0.051424]
[1736302257527,0.001,97268.0,97263.0,0.04628161]
[1736302258118,0.3608,97271.0,97263.0,0.04628161]
[1736302258334,0.001,97268.0,97263.0,0.04628161]
[1736302258722,0.3608,97271.0,97263.0,0.04628161]
[1736302258922,0.001,97268.0,97263.0,0.40708161]
[1736302259322,0.3608,97271.0,97263.0,0.40708161]
[1736302259525,0.001,97268.0,97263.0,0.40708161]
[1736302259828,0.001,97268.0,97263.0,0.04628161]
[1736302261030,0.001,97268.0,97263.0,0.40708161]
[1736302261625,0.001,97268.0,97263.0,0.04628161]
[1736302264139,0.001,97268.0,97263.0,0.40245345]
[1736302264838,0.10181291,97273.0,97263.0,0.40245345]
[1736302265038,0.001,97268.0,97263.0,0.40245345]
[1736302265941,0.3608,97274.0,97263.0,0.40245345]
[1736302266239,0.001,97273.0,97263.0,0.40245345]
[1736302266630,0.001,97268.0,97263.0,0.40245345]
[1736302267525,0.001,97268.0,97266.0,0.051423]
[1736302268442,0.3618,97274.0,97266.0,0.051423]
[1736302268939,0.001,97268.0,97266.0,0.051423]
[1736302269443,0.3608,97274.0,97266.0,0.051423]
[1736302269737,0.3618,97274.0,97266.0,0.051423]
[1736302270040,0.3618,97274.0,97267.0,0.051422]
[1736302270341,0.15322891,97280.0,97263.0,0.31049994]
[1736302270535,0.001,97268.0,97263.0,0.31049994]
[1736302271049,0.001,97268.0,97267.0,0.051422]
[1736302271634,0.001,97274.0,97267.0,0.051422]
[1736302272142,0.3608,97276.0,97267.0,0.051422]
[1736302272444,0.001,97268.0,97267.0,0.051422]
[1736302272837,0.001,97274.0,97267.0,0.051422]
[1736302275335,0.3608,97268.0,97256.0,0.3165]
[1736302275539,0.3608,97257.0,97244.0,0.3058]
[1736302275736,0.3608,97249.0,97244.0,0.5969]
[1736302277748,0.3608,97249.0,97244.0,0.5979]
[1736302277932,0.051434,97246.0,97244.0,0.5979]
[1736302278139,0.051434,97246.0,97244.0,0.001]
[1736302278341,0.051442,97231.0,97229.0,0.56193008]
[1736302278550,0.3608,97230.0,97229.0,0.56193008]
[1736302279035,0.3608,97230.0,97229.0,0.45242193]
[1736302279849,0.3608,97230.0,97229.0,0.45542193]
[1736302280345,0.50357987,97230.0,97229.0,0.45542193]
[1736302280645,0.50357987,97230.0,97229.0,0.01448036]
[1736302280846,0.50357987,97230.0,97229.0,0.01548036]
[1736302281443,0.50357987,97230.0,97229.0,0.004]
[1736302281645,0.051444,97227.0,97222.0,0.03702466]
[1736302281834,0.051444,97227.0,97219.0,0.051447]
[1736302282033,0.04358054,97245.0,97224.0,0.3608]
[1736302282245,0.04358054,97245.0,97236.0,0.3608]
[1736302283544,0.04458054,97245.0,97236.0,0.3608]
[1736302285450,0.3031,97244.0,97236.0,0.3608]
[1736302286842,0.04458054,97245.0,97236.0,0.3608]
[1736302288043,0.04358054,97245.0,97236.0,0.3608]
[1736302288243,0.10181291,97246.0,97236.0,0.3608]
[1736302288443,0.10181291,97246.0,97244.0,0.3608]
[1736302288644,0.04230856,97249.0,97244.0,0.3608]
[1736302288851,0.3054,97250.0,97247.0,0.3608]
[1736302290653,0.00154294,97251.0,97247.0,0.3608]
[1736302291155,0.00154294,97251.0,97248.0,0.632]
[1736302295658,0.03578398,97258.0,97248.0,0.632]
[1736302295854,0.10181291,97260.0,97248.0,0.632]
[1736302296249,0.10181291,97260.0,97256.0,0.3608]
[1736302296450,0.03590565,97260.0,97256.0,0.26418814]
[1736302296749,0.10181291,97266.0,97256.0,0.26418814]
[1736302299852,0.13877515,97266.0,97256.0,0.26418814]
[1736302300264,0.13877515,97266.0,97256.0,0.12827768]
[1736302300951,0.13877515,97266.0,97248.0,0.632]
[1736302300952,0.24058806,97266.0,97248.0,0.632]
[1736302301151,0.10181291,97258.0,97234.0,0.36234291]
[1736302301359,0.10181291,97244.0,97235.0,0.59731918]
[1736302302356,0.10181291,97244.0,97235.0,0.2977]
[1736302304154,0.3608,97241.0,97226.0,0.3608]
[1736302304358,0.10181291,97236.0,97226.0,0.3608]
[1736302304758,0.03627554,97246.0,97235.0,0.3608]
[1736302304957,0.10181291,97250.0,97236.0,0.6045]
[1736302305153,0.10181291,97250.0,97236.0,0.9114]
[1736302305466,0.00154299,97256.0,97245.0,0.3608]
[1736302306365,0.00154299,97256.0,97244.0,0.3608]
[1736302306564,0.10181291,97250.0,97244.0,0.3608]
[1736302307368,0.00154299,97256.0,97244.0,0.3608]
[1736302307759,0.00154299,97256.0,97244.0,0.32472001]
[1736302310569,0.10181291,97254.0,97244.0,0.32472001]
[1736302311268,0.3608,97251.0,97235.0,0.3608]
[1736302311464,0.3608,97251.0,97236.0,0.9114]
[1736302311766,0.3608,97243.0,97236.0,0.9114]
[1736302315776,0.3608,97243.0,97236.0,0.81477242]
[1736302318665,0.3608,97243.0,97236.0,0.6148]
[1736302320668,0.3608,97243.0,97236.0,0.55332001]
[1736302325573,0.3608,97243.0,97236.0,0.45668941]
[1736302326368,0.3608,97243.0,97236.0,0.32696399]
[1736302329577,0.3608,97243.0,97236.0,0.21987417]
[1736302330575,0.3608,97243.0,97236.0,0.19788676]
[1736302335788,0.3608,97243.0,97236.0,0.1025568]
[1736302338988,0.10181291,97250.0,97236.0,0.1025568]
[1736302339689,0.39689738,97251.0,97236.0,0.1025568]
[1736302340790,0.10181291,97250.0,97236.0,0.1025568]
[1736302340988,0.10181291,97250.0,97236.0,0.14865762]
[1736302341788,0.03609738,97251.0,97242.0,0.3608]
[1736302341987,0.00154299,97256.0,97243.0,0.2100871]
[1736302344684,0.00154299,97256.0,97252.0,0.3608]
[1736302344884,0.00154299,97256.0,97253.0,0.2948]
[1736302345387,0.24003403,97264.0,97253.0,0.346229]
[1736302345589,0.10181291,97280.0,97261.0,0.3608]
[1736302347103,0.10181291,97280.0,97261.0,0.26420877]
[1736302348086,0.10181291,97280.0,97261.0,0.1529327]
[1736302348282,0.3608,97278.0,97261.0,0.1529327]
[1736302348489,0.3608,97278.0,97262.0,0.3005]
[1736302353793,0.3608,97278.0,97262.0,0.23437001]
[1736302354300,0.3608,97278.0,97263.0,0.3209]
[1736302360397,0.3608,97278.0,97263.0,0.22430751]
[1736302364307,0.3608,97268.0,97257.0,0.3083]
[1736302364807,0.3608,97260.0,97242.0,0.61244]
[1736302365007,0.46261291,97260.0,97242.0,0.6112]
[1736302365207,0.3608,97250.0,97241.0,0.3608]
[1736302365508,0.3608,97250.0,97232.0,0.372341]
[1736302365509,0.3608,97250.0,97240.0,0.06676852]
[1736302366101,0.42756852,97250.0,97240.0,0.06676852]
[1736302366703,0.3608,97250.0,97232.0,0.30100072]
[1736302366903,0.3608,97250.0,97240.0,0.001]
[1736302367106,0.42756852,97250.0,97240.0,0.06776852]
[1736302367403,0.3608,97250.0,97240.0,0.001]
[1736302367611,0.3608,97250.0,97240.0,0.10274348]
[1736302367907,0.3608,97250.0,97240.0,0.01734345]
[1736302368506,0.3608,97250.0,97232.0,0.33901384]
[1736302368703,0.46254348,97250.0,97232.0,0.33901384]
[1736302371311,0.3608,97250.0,97232.0,0.33901384]
[1736302372918,0.3608,97250.0,97233.0,0.05144]
[1736302373320,0.46254348,97250.0,97234.0,0.6294]
[1736302373709,0.10174348,97244.0,97234.0,0.6294]
[1736302373914,0.46254348,97250.0,97234.0,0.6294]
[1736302374211,0.3608,97240.0,97219.0,0.051448]
[1736302374521,0.3608,97232.0,97221.0,0.3172]
[1736302377025,0.3608,97232.0,97222.0,0.051446]
[1736302377320,0.3203,97239.0,97228.0,0.3608]
[1736302377724,0.3203,97239.0,97222.0,0.356846]
[1736302378118,0.3203,97239.0,97222.0,0.3054]
[1736302378319,0.3203,97239.0,97223.0,0.051445]
[1736302379521,0.3203,97239.0,97228.0,0.3608]
[1736302381523,0.3203,97239.0,97231.0,0.3608]
[1736302382921,0.03840848,97240.0,97231.0,0.3608]
[1736302383119,0.3608,97246.0,97231.0,0.3608]
[1736302383824,0.3608,97246.0,97231.0,0.412241]
[1736302384630,0.10174348,97241.0,97231.0,0.412241]
[1736302385526,0.40015134,97246.0,97231.0,0.412241]
[1736302386227,0.10174348,97241.0,97231.0,0.412241]
[1736302387927,0.10174348,97241.0,97231.0,0.45106159]
[1736302388921,0.10174348,97241.0,97231.0,0.09026159]
[1736302389129,0.10174348,97241.0,97234.0,0.3608]
[1736302389325,0.03935134,97246.0,97234.0,0.3608]
[1736302389526,0.66,97249.0,97234.0,0.3608]
[1736302389722,0.66052001,97249.0,97234.0,0.3608]
[1736302389923,0.66,97249.0,97234.0,0.3608]
[1736302390529,0.2992,97249.0,97231.0,0.09026159]
[1736302390718,0.66,97249.0,97234.0,0.3608]
[1736302390919,0.69920422,97249.0,97234.0,0.3608]
[1736302391317,0.3608,97249.0,97239.0,0.10174348]
[1736302391628,0.00154293,97250.0,97244.0,0.051434]
[1736302392734,0.3608,97248.0,97215.0,0.00154299]
[1736302392934,0.10174348,97231.0,97222.0,0.3254]
[1736302394832,0.10174348,97231.0,97222.0,0.6862]
[1736302395031,0.3608,97248.0,97222.0,0.6862]
[1736302395235,0.3608,97248.0,97231.0,0.051441]
[1736302396137,0.3608,97248.0,97232.0,0.3098]
[1736302396636,0.3608,97248.0,97233.0,0.3038]
[1736302396838,0.10174348,97243.0,97233.0,0.3038]
[1736302397043,0.10174348,97243.0,97233.0,0.6646]
[1736302397833,0.3608,97248.0,97233.0,0.6646]
[1736302399545,0.00154293,97250.0,97241.0,0.3608]
[1736302399843,0.00154293,97250.0,97233.0,0.71728]
[1736302400029,0.00154293,97250.0,97233.0,0.69718392]
[1736302400232,0.00154293,97250.0,97238.0,0.051438]
[1736302400628,0.00154293,97250.0,97239.0,0.3262]
[1736302401843,0.00154293,97250.0,97242.0,0.3608]
[1736302402942,0.00154293,97250.0,97243.0,0.051435]
[1736302408042,0.00154293,97250.0,97240.0,0.10174348]
[1736302408343,0.00154293,97250.0,97240.0,0.13063995]
[1736302408843,0.00154293,97250.0,97240.0,0.02889647]
[1736302409144,0.10328641,97250.0,97239.0,0.3262]
[1736302410246,0.00154293,97250.0,97239.0,0.3262]
[1736302410744,0.00154293,97250.0,97233.0,0.66588]
[1736302410946,0.3115,97249.0,97233.0,0.6646]
[1736302411338,0.3115,97249.0,97233.0,0.56716001]
[1736302414445,0.3115,97249.0,97233.0,0.3608]
[1736302415053,0.10174348,97243.0,97233.0,0.3608]
[1736302415247,0.294,97242.0,97233.0,0.3608]
[1736302416037,0.3608,97240.0,97225.0,0.2941]
[1736302416453,0.3608,97232.0,97224.0,0.26417571]
[1736302416941,0.3608,97232.0,97221.0,0.307]
[1736302417855,0.10174348,97231.0,97216.0,0.3031]
[1736302418654,0.3608,97232.0,97216.0,0.3031]
[1736302419251,0.10174348,97230.0,97216.0,0.3031]
[1736302422063,0.06274349,97232.0,97222.0,0.3608]
[1736302422358,0.16448697,97232.0,97222.0,0.3608]
[1736302423955,0.19324204,97232.0,97222.0,0.3608]
[1736302433249,0.09149856,97232.0,97222.0,0.3608]
[1736302433761,0.19324204,97232.0,97222.0,0.3608]
[1736302438553,0.29498552,97232.0,97222.0,0.3608]
[1736302438754,0.29498552,97232.0,97216.0,0.3031]
[1736302438968,0.19324204,97232.0,97216.0,0.3031]
[1736302439261,0.06789487,97226.0,97216.0,0.3031]
[1736302439968,0.3608,97222.0,97196.0,0.3608]
[1736302440168,0.20348696,97206.0,97197.0,0.3608]
[1736302440461,0.20348696,97207.0,97197.0,0.3608]
[1736302440855,0.10174348,97207.0,97197.0,0.3608]
[1736302441965,0.20348696,97207.0,97197.0,0.3608]
[1736302442463,0.20348696,97207.0,97164.0,0.001544]
[1736302442464,0.3608,97202.0,97173.0,0.3608]
[1736302442666,0.10174348,97200.0,97184.0,0.3608]
[1736302442964,0.10174348,97194.0,97184.0,0.3608]
[1736302443566,0.40174348,97194.0,97184.0,0.3608]
[1736302443860,0.10174348,97194.0,97184.0,0.3608]
[1736302444068,0.02791789,97194.0,97193.0,0.3608]
[1736302444259,0.10174348,97210.0,97193.0,0.3608]
[1736302444462,0.10174348,97203.0,97193.0,0.3608]
[1736302444662,0.16244348,97210.0,97193.0,0.3608]
[1736302445370,0.12687223,97209.0,97193.0,0.3608]
[1736302446065,0.12687223,97209.0,97207.0,0.3608]
[1736302446465,0.02814039,97211.0,97207.0,0.3608]
[1736302446673,0.10174348,97220.0,97207.0,0.3608]
[1736302446875,0.10174348,97220.0,97208.0,0.9457]
[1736302447757,0.49066043,97212.0,97208.0,0.9457]
[1736302447970,0.49066043,97212.0,97208.0,0.6358]
[1736302448471,0.49066043,97212.0,97208.0,0.3171]
[1736302448773,0.49066043,97212.0,97207.0,0.3608]
[1736302452576,0.12687223,97211.0,97207.0,0.3608]
[1736302453073,0.12687223,97211.0,97207.0,0.17618859]
[1736302453579,0.12687223,97210.0,97207.0,0.17618859]
[1736302454468,0.49066043,97212.0,97207.0,0.17618859]
[1736302456181,0.49066043,97212.0,97195.0,0.3111]
[1736302456476,0.49066043,97212.0,97202.0,0.3608]
[1736302457269,0.49066043,97212.0,97202.0,0.17076153]
[1736302458475,0.49066043,97212.0,97202.0,0.0740906]
[1736302458683,0.49066043,97212.0,97195.0,0.3111]
[1736302459081,0.49066043,97212.0,97200.0,0.10174348]
[1736302461279,0.49066043,97212.0,97195.0,0.3111]
[1736302462382,0.49066043,97212.0,97200.0,0.10174348]
[1736302466079,0.49066043,97212.0,97201.0,0.3608]
[1736302466275,0.001544,97214.0,97209.0,0.3608]
[1736302466476,0.3608,97212.0,97201.0,0.26413574]
[1736302469678,0.3608,97212.0,97200.0,0.10174348]
[1736302470189,0.3608,97242.0,97209.0,0.3608]
[1736302470384,0.3608,97242.0,97230.0,0.10174348]
[1736302470576,0.3608,97242.0,97231.0,0.6129]
[1736302471593,0.3608,97242.0,97231.0,0.55161001]
[1736302471780,0.10174348,97241.0,97231.0,0.55161001]
[1736302475088,0.10174348,97241.0,97225.0,0.3608]
[1736302475395,0.3608,97233.0,97221.0,0.3048]
[1736302476483,0.3608,97233.0,97221.0,0.27432001]
[1736302479390,0.3608,97233.0,97211.0,0.49906651]
[1736302479695,0.3608,97233.0,97211.0,0.49762651]
[1736302481682,0.38629076,97233.0,97211.0,0.49762651]
[1736302487698,0.10174348,97221.0,97211.0,0.49762651]
[1736302493404,0.12602698,97221.0,97211.0,0.49762651]
[1736302493897,0.12602698,97221.0,97211.0,0.3168]
[1736302494101,0.3608,97212.0,97205.0,0.3094]
[1736302494400,0.3608,97212.0,97200.0,0.3489]